fUSD/lending_fUSD_20250530
["ID","MTS","AMOUNT","RATE_DAILY","PERIOD"]
[363099238,1748577041657,-420.0,0.00021917,2]
[363099241,1748577041670,-500.4,0.00021917,2]
[363099243,1748577041682,-1300.41,0.00021917,2]
[363099245,1748577041696,-735.79,0.00021917,2]
[363099248,1748577041711,-719.57,0.00021917,2]
[363099250,1748577041722,-479.85,0.00021917,2]
[363099252,1748577041734,-420.0,0.00021917,2]
[363099255,1748577041747,-420.0,0.00021917,2]
[363099257,1748577041762,-420.0,0.00021917,2]
[363099260,1748577041775,-500.0,0.00021917,2]
[363099262,1748577041786,-500.0,0.00021917,2]
[363099264,1748577041798,-500.0,0.00021917,2]
[363099267,1748577041810,-500.0,0.00021917,2]
[363099269,1748577041823,-500.0,0.00021917,2]
[363099271,1748577041835,-602.60810485,0.00021917,2]
[363099274,1748577041852,-733.67,0.00021917,2]
[363099276,1748577041864,-841.62,0.00021917,2]
[363099279,1748577041877,-420.0,0.00021917,2]
[363099281,1748577041890,-1076.02,0.00021917,2]
[363099283,1748577041902,-819.88,0.00021917,2]
[363099286,1748577041914,-420.0,0.00021917,2]
[363099288,1748577041927,-288.40515789,0.00021917,2]
[363099290,1748577041939,-420.0,0.00021917,2]
[363099293,1748577041952,-583.86,0.00021917,2]
[363099295,1748577041964,-2005.12,0.00021917,2]
[363099297,1748577041976,-1308.22,0.00021917,2]
[363099300,1748577041988,-1115.43,0.00021917,2]
[363099302,1748577042000,-553.76565485,0.00021917,2]
[363099304,1748577042012,-420.0,0.00021917,2]
[363099307,1748577042025,-450.2,0.00021917,2]
[363099309,1748577042037,-277.52366017,0.00021917,2]
[363099311,1748577042049,-469.23,0.00021917,2]
[363099313,1748577042062,-420.0,0.00021917,2]
[363099316,1748577042074,-420.0,0.00021917,2]
[363099318,1748577042086,-420.0,0.00021917,2]
[363099320,1748577042098,-503.09,0.00021917,2]
[363099323,1748577042110,-420.0,0.00021917,2]
[363099325,1748577042122,-729.45,0.00021917,2]
[363099327,1748577042135,-633.07,0.00021917,2]
[363099329,1748577042147,-702.2,0.00021917,2]
[363099332,1748577042159,-302.83464355,0.00021917,2]
[363099334,1748577042174,-1409.77,0.00021917,2]
[363099336,1748577042187,-456.66,0.00021917,2]
[363099339,1748577042199,-461.74,0.00021917,2]
[363099341,1748577042213,-1776.02,0.00021917,2]
[363099344,1748577042227,-1577.41,0.00021917,2]
[363099346,1748577042239,-420.0,0.00021917,2]
[363099348,1748577042251,-569.13,0.00021917,2]
[363099350,1748577042264,-420.0,0.00021917,2]
[363099351,1748577042277,-707.73,0.00021917,2]
[363099352,1748577042289,-735.21,0.00021917,2]
[363099353,1748577042305,-420.0,0.00021917,2]
[363099354,1748577042323,-420.0,0.00021917,2]
[363099355,1748577042335,-420.0,0.00021917,2]
[363099357,1748577042347,-639.32608199,0.00021917,2]
[363099362,1748577042376,-230.73391801,0.00021917,2]
[363099365,1748577042388,-548.15,0.00021917,2]
[363099369,1748577042400,-420.0,0.00021917,2]
[363099371,1748577042412,-582.4,0.00021917,2]
[363099373,1748577042425,-420.0,0.00021917,2]
[363099376,1748577042437,-658.87,0.00021917,2]
[363099378,1748577042448,-1398.11,0.00021917,2]
[363099380,1748577042461,-766.6,0.00021917,2]
[363099383,1748577042474,-500.0,0.00021917,2]
[363099385,1748577042486,-420.0,0.00021917,2]
[363099387,1748577042498,-938.98,0.00021917,2]
[363099389,1748577042511,-420.0,0.00021917,2]
[363099392,1748577042523,-913.55,0.00021917,2]
[363099394,1748577042535,-646.3,0.00021917,2]
[363099396,1748577042548,-60.00716022,0.00021917,2]
[363099399,1748577042563,-970.21283978,0.00021917,2]
[363099401,1748577042576,-559.7781708,0.00021917,2]
[363099404,1748577042590,-620.4418292,0.00021917,2]
[363099406,1748577042603,-420.0,0.00021917,2]
[363099409,1748577042615,-1123.7733628,0.00021917,2]
[363099412,1748577042642,-475.9866372,0.00021917,2]
[363099415,1748577042654,-420.0,0.00021917,2]
[363099417,1748577042667,-500.0,0.00021917,2]
[363099419,1748577042679,-1378.95,0.00021917,2]
[363099422,1748577042691,-500.0,0.00021917,2]
[363099424,1748577042703,-500.0,0.00021917,2]
[363099426,1748577042715,-644.66,0.00021917,2]
[363099429,1748577042727,-683.46,0.00021917,2]
[363099431,1748577042741,-776.07,0.00021917,2]
[363099433,1748577042752,-1513.51,0.00021917,2]
[363099435,1748577042765,-549.99,0.00021917,2]
[363099438,1748577042776,-510.02,0.00021917,2]
[363099440,1748577042789,-1250.47,0.00021917,2]
[363099442,1748577042800,-638.89,0.00021917,2]
[363099445,1748577042813,-420.0,0.00021917,2]
[363099447,1748577042825,-420.0,0.00021917,2]
[363099449,1748577042838,-1195.92,0.00021917,2]
[363099452,1748577042851,-1199.37,0.00021917,2]
[363099454,1748577042863,-564.6,0.00021917,2]
[363099456,1748577042875,-420.0,0.00021917,2]
[363099459,1748577042887,-477.68,0.00021917,2]
[363099461,1748577042899,-862.1,0.00021917,2]
[363099463,1748577042911,-1403.59,0.00021917,2]
[363099466,1748577042923,-439.15,0.00021917,2]
[363099469,1748577042936,-420.0,0.00021917,2]
[363099471,1748577042948,-771.14,0.00021917,2]
[363099473,1748577042960,-533.63,0.00021917,2]
[363099475,1748577042972,-885.37,0.00021917,2]
[363099478,1748577042983,-1039.08,0.00021917,2]
[363099480,1748577042996,-1758.85,0.00021917,2]
[363099482,1748577043007,-713.86,0.00021917,2]
[363099485,1748577043020,-420.0,0.00021917,2]
[363099487,1748577043031,-1487.91,0.00021917,2]
[363099489,1748577043044,-557.21,0.00021917,2]
[363099491,1748577043056,-704.63,0.00021917,2]
[363099494,1748577043068,-420.0,0.00021917,2]
[363099496,1748577043080,-615.58,0.00021917,2]
[363099498,1748577043093,-1288.39,0.00021917,2]
[363099501,1748577043105,-729.24,0.00021917,2]
[363099503,1748577043117,-450.67,0.00021917,2]
[363099505,1748577043128,-420.0,0.00021917,2]
[363099508,1748577043141,-1276.74,0.00021917,2]
[363099510,1748577043153,-441.56,0.00021917,2]
[363099512,1748577043164,-1677.95,0.00021917,2]
[363099515,1748577043176,-813.58,0.00021917,2]
[363099517,1748577043189,-420.0,0.00021917,2]
[363099519,1748577043201,-999.35,0.00021917,2]
[363099522,1748577043213,-872.86,0.00021917,2]
[363099524,1748577043225,-524.95605246,0.00021917,2]
[363099526,1748577043237,-1163.15,0.00021917,2]
[363099529,1748577043249,-715.06,0.00021917,2]
[363099531,1748577043261,-977.83,0.00021917,2]
[363099533,1748577043273,-611.06,0.00021917,2]
[363099535,1748577043288,-1594.02,0.00021917,2]
[363099538,1748577043300,-420.0,0.00021917,2]
[363099540,1748577043313,-1080.55,0.00021917,2]
[363099542,1748577043330,-420.0,0.00021917,2]
[363099544,1748577043342,-731.01,0.00021917,2]
[363099547,1748577043355,-420.0,0.00021917,2]
[363099549,1748577043367,-574.31,0.00021917,2]
[363099551,1748577043380,-420.0,0.00021917,2]
[363099553,1748577043392,-420.0,0.00021917,2]
[363099556,1748577043404,-456.23,0.00021917,2]
[363099558,1748577043417,-504.91,0.00021917,2]
[363099560,1748577043429,-420.0,0.00021917,2]
[363099562,1748577043441,-420.0,0.00021917,2]
[363099565,1748577043459,-1384.78,0.00021917,2]
[363099567,1748577043472,-420.0,0.00021917,2]
[363099569,1748577043484,-500.49,0.00021917,2]
[363099571,1748577043495,-420.0,0.00021917,2]
[363099574,1748577043509,-1440.33,0.00021917,2]
[363099576,1748577043522,-2694.5,0.00021917,2]
[363099578,1748577043535,-466.79588771,0.00021917,2]
[363099580,1748577043547,-1082.61,0.00021917,2]
[363099583,1748577043559,-2161.59,0.00021917,2]
[363099585,1748577043571,-1384.17,0.00021917,2]
[363099587,1748577043583,-615.23,0.00021917,2]
[363099590,1748577043595,-1235.56,0.00021917,2]
[363099592,1748577043606,-207.32,0.00021917,2]
[363099594,1748577043618,-420.0,0.00021917,2]
[363099596,1748577043629,-420.0,0.00021917,2]
[363099599,1748577043640,-420.0,0.00021917,2]
[363099601,1748577043652,-1618.66,0.00021917,2]
[363099603,1748577043664,-1167.79,0.00021917,2]
[363099606,1748577043677,-420.0,0.00021917,2]
[363099608,1748577043688,-420.0,0.00021917,2]
[363099610,1748577043697,-641.35,0.00021917,2]
[363099612,1748577043707,-450.2,0.00021917,2]
[363099614,1748577043717,-585.88,0.00021917,2]
[363099616,1748577043726,-420.0,0.00021917,2]
[363099618,1748577043735,-420.0,0.00021917,2]
[363099620,1748577043744,-1088.22,0.00021917,2]
[363099622,1748577043754,-1656.66,0.00021917,2]
[363099624,1748577043763,-531.64,0.00021917,2]
[363099626,1748577043772,-420.0,0.00021917,2]
[363099628,1748577043782,-420.0,0.00021917,2]
[363099630,1748577043792,-614.72,0.00021917,2]
[363099632,1748577043802,-420.0,0.00021917,2]
[363099634,1748577043811,-420.0,0.00021917,2]
[363099636,1748577043821,-861.43,0.00021917,2]
[363099638,1748577043830,-428.85666844,0.00021917,2]
[363099640,1748577043840,-420.0,0.00021917,2]
[363099678,1748577044258,-562.59,0.00021917,2]
[363099682,1748577044289,-1430.36,0.00021917,2]
[363099685,1748577044315,-420.0,0.00021917,2]
[363099687,1748577044325,-463.9,0.00021917,2]
[363099689,1748577044335,-420.0,0.00021917,2]
[363099691,1748577044345,-420.0,0.00021917,2]
[363099693,1748577044357,-420.0,0.00021917,2]
[363099695,1748577044368,-420.0,0.00021917,2]
[363099697,1748577044377,-422.6094119,0.00021917,2]
[363099699,1748577044387,-420.0,0.00021917,2]
[363099701,1748577044396,-543.61038242,0.00021917,2]
[363099703,1748577044406,-420.0,0.00021917,2]
[363099705,1748577044415,-420.0,0.00021917,2]
[363099707,1748577044425,-1253.18,0.00021917,2]
[363099709,1748577044434,-420.0,0.00021917,2]
[363099711,1748577044444,-907.75,0.00021917,2]
[363099713,1748577044454,-420.0,0.00021917,2]
[363099715,1748577044463,-615.32,0.00021917,2]
[363099717,1748577044473,-454.15,0.00021917,2]
[363099719,1748577044482,-501.68,0.00021917,2]
[363099721,1748577044492,-1009.96,0.00021917,2]
[363099724,1748577044502,-420.0,0.00021917,2]
[363099726,1748577044512,-420.0,0.00021917,2]
[363099728,1748577044522,-1143.06,0.00021917,2]
[363099729,1748577044531,-183.54188445,0.00021917,2]
[363099731,1748577044541,-630.26,0.00021917,2]
[363099733,1748577044551,-504.48547363,0.00021917,2]
[363099734,1748577044560,-808.13,0.00021917,2]
[363099735,1748577044569,-785.63,0.00021917,2]
[363099736,1748577044578,-815.28,0.00021917,2]
[363099737,1748577044588,-705.69,0.00021917,2]
[363099738,1748577044597,-1000.8,0.00021917,2]
[363099739,1748577044607,-723.36,0.00021917,2]
[363099740,1748577044618,-1145.08,0.00021917,2]
[363099741,1748577044627,-526.26,0.00021917,2]
[363099742,1748577044637,-679.65,0.00021917,2]
[363099743,1748577044646,-420.0,0.00021917,2]
[363099744,1748577044656,-420.0,0.00021917,2]
[363099745,1748577044666,-420.0,0.00021917,2]
[363099746,1748577044675,-420.0,0.00021917,2]
[363099747,1748577044685,-545.34,0.00021917,2]
[363099748,1748577044695,-1154.36,0.00021917,2]
[363099749,1748577044705,-420.0,0.00021917,2]
[363099750,1748577044714,-1320.57,0.00021917,2]
[363099751,1748577044723,-420.0,0.00021917,2]
[363099752,1748577044732,-420.0,0.00021917,2]
[363099753,1748577044742,-420.0,0.00021917,2]
[363099754,1748577044752,-420.0,0.00021917,2]
[363099755,1748577044761,-420.0,0.00021917,2]
[363099756,1748577044770,-1007.98,0.00021917,2]
[363099757,1748577044779,-551.19,0.00021917,2]
[363099758,1748577044789,-420.0,0.00021917,2]
[363099759,1748577044798,-420.0,0.00021917,2]
[363099760,1748577044808,-1890.1,0.00021917,2]
[363099761,1748577044817,-420.0,0.00021917,2]
[363099762,1748577044827,-420.0,0.00021917,2]
[363099763,1748577044837,-420.0,0.00021917,2]
[363099764,1748577044847,-420.0,0.00021917,2]
[363099765,1748577044856,-1028.95,0.00021917,2]
[363099766,1748577044865,-420.0,0.00021917,2]
[363099767,1748577044875,-302.0147599,0.00021917,2]
[363099768,1748577044884,-503.65,0.00021917,2]
[363099769,1748577044894,-1081.37,0.00021917,2]
[363099770,1748577044904,-420.0,0.00021917,2]
[363099771,1748577044913,-420.0,0.00021917,2]
[363099772,1748577044923,-532.33,0.00021917,2]
[363099773,1748577044933,-845.1,0.00021917,2]
[363099774,1748577044943,-827.76,0.00021917,2]
[363099775,1748577044953,-420.0,0.00021917,2]
[363099776,1748577044963,-1544.5,0.00021917,2]
[363099777,1748577044973,-420.0,0.00021917,2]
[363099778,1748577044982,-420.0,0.00021917,2]
[363099779,1748577044992,-1377.75,0.00021917,2]
[363099780,1748577045001,-1405.79,0.00021917,2]
[363099782,1748577045011,-507.04,0.00021917,2]
[363099784,1748577045021,-420.0,0.00021917,2]
[363099786,1748577045031,-1230.45,0.00021917,2]
[363099787,1748577045040,-491.88,0.00021917,2]
[363099788,1748577045050,-420.0,0.00021917,2]
[363099789,1748577045059,-420.0,0.00021917,2]
[363099790,1748577045068,-420.0,0.00021917,2]
[363099791,1748577045077,-420.0,0.00021917,2]
[363099792,1748577045087,-420.0,0.00021917,2]
[363099793,1748577045097,-532.05,0.00021917,2]
[363099794,1748577045106,-533.06,0.00021917,2]
[363099795,1748577045115,-379.02760246,0.00021917,2]
[363099796,1748577045125,-420.0,0.00021917,2]
[363099797,1748577045134,-550.46,0.00021917,2]
[363099798,1748577045147,-300.0,0.00021917,2]
[363099799,1748577045156,-495.15,0.00021917,2]
[363099800,1748577045166,-1172.44,0.00021917,2]
[363099801,1748577045175,-420.0,0.00021917,2]
[363099802,1748577045184,-420.0,0.00021917,2]
[363099803,1748577045194,-926.7,0.00021917,2]
[363099804,1748577045203,-420.0,0.00021917,2]
[363099805,1748577045213,-868.41,0.00021917,2]
[363099806,1748577045222,-420.0,0.00021917,2]
[363099807,1748577045233,-432.62,0.00021917,2]
[363099808,1748577045242,-420.0,0.00021917,2]
[363099809,1748577045251,-424.93012342,0.00021917,2]
[363099810,1748577045261,-372.99160441,0.00021917,2]
[363099811,1748577045272,-420.0,0.00021917,2]
[363099812,1748577045284,-420.0,0.00021917,2]
[363099813,1748577045294,-767.31,0.00021917,2]
[363099814,1748577045304,-10179.48,0.00021917,2]
[363099815,1748577045314,-455.59,0.00021917,2]
[363099816,1748577045327,-424.82,0.00021917,2]
[363099817,1748577045336,-420.0,0.00021917,2]
[363099818,1748577045346,-420.0,0.00021917,2]
[363099819,1748577045356,-646.5,0.00021917,2]
[363099821,1748577045366,-703.65,0.00021917,2]
[363099822,1748577045375,-1407.11,0.00021917,2]
[363099823,1748577045384,-420.0,0.00021917,2]
[363099824,1748577045393,-420.0,0.00021917,2]
[363099825,1748577045402,-520.11,0.00021917,2]
[363099826,1748577045412,-1842.72,0.00021917,2]
[363099827,1748577045422,-592.53,0.00021917,2]
[363099828,1748577045432,-444.62,0.00021917,2]
[363099829,1748577045441,-1579.22,0.00021917,2]
[363099830,1748577045451,-523.04,0.00021917,2]
[363099831,1748577045460,-420.0,0.00021917,2]
[363099832,1748577045470,-420.0,0.00021917,2]
[363099833,1748577045481,-2262.48,0.00021917,2]
[363099834,1748577045490,-1042.18,0.00021917,2]
[363099835,1748577045502,-420.0,0.00021917,2]
[363099836,1748577045511,-12048.0,0.00021917,2]
[363099837,1748577045521,-420.0,0.00021917,2]
[363099838,1748577045531,-420.0,0.00021917,2]
[363099839,1748577045540,-469.03,0.00021917,2]
[363099840,1748577045550,-510.79,0.00021917,2]
[363099841,1748577045559,-9870.4,0.00021917,2]
[363099842,1748577045568,-3487.38,0.00021917,2]
[363099843,1748577045579,-1939.7,0.00021917,2]
[363099844,1748577045588,-420.0,0.00021917,2]
[363099845,1748577045597,-313.05,0.00021917,2]
[363099846,1748577045607,-420.0,0.00021917,2]
[363099847,1748577045616,-1311.92,0.00021917,2]
[363099848,1748577045626,-608.37,0.00021917,2]
[363099849,1748577045635,-938.71,0.00021917,2]
[363099850,1748577045644,-420.0,0.00021917,2]
[363099851,1748577045653,-2762.81,0.00021917,2]
[363099852,1748577045663,-420.0,0.00021917,2]
[363099853,1748577045674,-594.63,0.00021917,2]
[363099854,1748577045683,-424.29767535,0.00021917,2]
[363099855,1748577045692,-427.00296382,0.00021917,2]
[363099856,1748577045701,-605.23,0.00021917,2]
[363099857,1748577045711,-23798.55,0.00021917,2]
[363099858,1748577045721,-420.0,0.00021917,2]
[363099859,1748577045737,-420.0,0.00021917,2]
[363099860,1748577045752,-420.0,0.00021917,2]
[363099861,1748577045761,-147.946304,0.00021917,2]
[363099862,1748577045809,-333.90708169,0.00021917,2]
[363099863,1748577045819,-420.0,0.00021917,2]
[363099864,1748577045829,-170.65189001,0.00021917,2]
[363099865,1748577045852,-2253.28810999,0.00021917,2]
[363099866,1748577045862,-420.0,0.00021917,2]
[363099867,1748577045871,-481.43,0.00021917,2]
[363099868,1748577045881,-1144.23,0.00021917,2]
[363099869,1748577045890,-759.17,0.00021917,2]
[363099870,1748577045899,-420.0,0.00021917,2]
[363099871,1748577045908,-420.0,0.00021917,2]
[363099872,1748577045917,-2704.58,0.00021917,2]
[363099873,1748577045926,-935.92,0.00021917,2]
[363099874,1748577045935,-420.0,0.00021917,2]
[363099875,1748577045945,-1444.52,0.00021917,2]
[363099876,1748577045954,-1248.17,0.00021917,2]
[363099877,1748577045963,-420.0,0.00021917,2]
[363099878,1748577045973,-1621.31,0.00021917,2]
[363099879,1748577045983,-420.0,0.00021917,2]
[363099880,1748577045993,-420.0,0.00021917,2]
[363099881,1748577046002,-1651.88,0.00021917,2]
[363099882,1748577046011,-1454.45,0.00021917,2]
[363099883,1748577046020,-420.0,0.00021917,2]
[363099884,1748577046030,-420.0,0.00021917,2]
[363099885,1748577046039,-420.0,0.00021917,2]
[363099886,1748577046049,-420.0,0.00021917,2]
[363099887,1748577046059,-458.9155837,0.00021917,2]
[363099888,1748577046068,-718.28,0.00021917,2]
[363099889,1748577046077,-446.42,0.00021917,2]
[363099890,1748577046087,-4403.25,0.00021917,2]
[363099891,1748577046096,-1007.91,0.00021917,2]
[363099892,1748577046106,-8834.37,0.00021917,2]
[363099893,1748577046115,-420.0,0.00021917,2]
[363099894,1748577046125,-420.0,0.00021917,2]
[363099895,1748577046135,-1585.11,0.00021917,2]
[363099896,1748577046144,-500.0,0.00021917,2]
[363099897,1748577046154,-1201.72,0.00021917,2]
[363099898,1748577046163,-500.0,0.00021917,2]
[363099899,1748577046173,-500.0,0.00021917,2]
[363099900,1748577046183,-500.0,0.00021917,2]
[363099901,1748577046192,-420.0,0.00021917,2]
[363099902,1748577046202,-420.0,0.00021917,2]
[363099903,1748577046212,-420.0,0.00021917,2]
[363099905,1748577046222,-420.0,0.00021917,2]
[363099906,1748577046231,-834.43,0.00021917,2]
[363099907,1748577046240,-729.49,0.00021917,2]
[363099908,1748577046250,-428.0,0.00021917,2]
[363099909,1748577046259,-420.0,0.00021917,2]
[363099910,1748577046269,-484.68,0.00021917,2]
[363099911,1748577046280,-500.0,0.00021917,2]
[363099912,1748577046291,-932.73,0.00021917,2]
[363099913,1748577046301,-420.0,0.00021917,2]
[363099914,1748577046311,-435.59,0.00021917,2]
[363099915,1748577046320,-2018.97,0.00021917,2]
[363099916,1748577046331,-3026.66,0.00021917,2]
[363099917,1748577046341,-532.58,0.00021917,2]
[363099918,1748577046350,-420.0,0.00021917,2]
[363099919,1748577046361,-420.0,0.00021917,2]
[363099920,1748577046371,-420.0,0.00021917,2]
[363099921,1748577046381,-250.8731329,0.00021917,2]
[363099922,1748577046391,-976.08,0.00021917,2]
[363099923,1748577046401,-2215.94,0.00021917,2]
[363099924,1748577046412,-2395.35,0.00021917,2]
[363099925,1748577046421,-420.0,0.00021917,2]
[363099926,1748577046431,-567.6,0.00021917,2]
[363099927,1748577046441,-465.18,0.00021917,2]
[363099928,1748577046452,-729.13,0.00021917,2]
[363099929,1748577046462,-465.91505069,0.00021917,2]
[363099930,1748577046471,-420.0,0.00021917,2]
[363099931,1748577046481,-1950.28,0.00021917,2]
[363099932,1748577046491,-420.0,0.00021917,2]
[363099933,1748577046500,-808.27,0.00021917,2]
[363099934,1748577046510,-420.0,0.00021917,2]
[363099935,1748577046520,-420.0,0.00021917,2]
[363099936,1748577046530,-4058.47,0.00021917,2]
[363099937,1748577046540,-420.0,0.00021917,2]
[363099938,1748577046550,-518.42,0.00021917,2]
[363099939,1748577046559,-3799.48,0.00021917,2]
[363099940,1748577046570,-420.55,0.00021917,2]
[363099941,1748577046579,-665.6,0.00021917,2]
[363099942,1748577046589,-420.0,0.00021917,2]
[363099943,1748577046598,-1610.5,0.00021917,2]
[363099944,1748577046608,-1648.83,0.00021917,2]
[363099945,1748577046617,-420.0,0.00021917,2]
[363099946,1748577046627,-420.0,0.00021917,2]
[363099947,1748577046636,-885.81,0.00021917,2]
[363099948,1748577046646,-12212.53,0.00021917,2]
[363099949,1748577046655,-420.0,0.00021917,2]
[363099950,1748577046664,-528.2636676,0.00021917,2]
[363099951,1748577046675,-436.82,0.00021917,2]
[363099952,1748577046685,-420.0,0.00021917,2]
[363099953,1748577046695,-12703.81,0.00021917,2]
[363099954,1748577046705,-420.0,0.00021917,2]
[363099955,1748577046715,-1636.27,0.00021917,2]
[363099956,1748577046725,-420.0,0.00021917,2]
[363099957,1748577046734,-420.0,0.00021917,2]
[363099958,1748577046744,-420.0,0.00021917,2]
[363099959,1748577046755,-420.0,0.00021917,2]
[363099960,1748577046765,-2979.16,0.00021917,2]
[363099961,1748577046775,-7345.41,0.00021917,2]
[363099962,1748577046784,-420.0,0.00021917,2]
[363099963,1748577046795,-1359.45,0.00021917,2]
[363099964,1748577046804,-568.69,0.00021917,2]
[363099965,1748577046814,-1472.6,0.00021917,2]
[363099966,1748577046823,-420.0,0.00021917,2]
[363099967,1748577046833,-420.0,0.00021917,2]
[363099968,1748577046843,-15666.51,0.00021917,2]
[363099969,1748577046853,-1089.01,0.00021917,2]
[363099970,1748577046863,-420.0,0.00021917,2]
[363099971,1748577046873,-420.0,0.00021917,2]
[363099972,1748577046883,-420.0,0.00021917,2]
[363099973,1748577046892,-1367.13,0.00021917,2]
[363099974,1748577046904,-747.79,0.00021917,2]
[363099975,1748577046920,-2767.54,0.00021917,2]
[363099976,1748577046936,-420.0,0.00021917,2]
[363099977,1748577046946,-1295.86,0.00021917,2]
[363099978,1748577046956,-1176.75,0.00021917,2]
[363099979,1748577046965,-420.0,0.00021917,2]
[363099980,1748577046976,-420.0,0.00021917,2]
[363099981,1748577046985,-3335.47,0.00021917,2]
[363099982,1748577046995,-420.0,0.00021917,2]
[363099983,1748577047004,-747.01,0.00021917,2]
[363099984,1748577047014,-1488.87,0.00021917,2]
[363099985,1748577047023,-420.0,0.00021917,2]
[363099986,1748577047033,-733.34,0.00021917,2]
[363099987,1748577047043,-768.58,0.00021917,2]
[363099988,1748577047052,-420.0,0.00021917,2]
[363099989,1748577047062,-4790.69,0.00021917,2]
[363099990,1748577047072,-1450.2,0.00021917,2]
[363099991,1748577047081,-1033.39,0.00021917,2]
[363099992,1748577047091,-420.0,0.00021917,2]
[363099993,1748577047100,-420.0,0.00021917,2]
[363099994,1748577047110,-1683.66,0.00021917,2]
[363099995,1748577047120,-423.62405286,0.00021917,2]
[363099996,1748577047130,-420.0,0.00021917,2]
[363099997,1748577047139,-876.06,0.00021917,2]
[363099998,1748577047149,-420.0,0.00021917,2]
[363099999,1748577047159,-2003.04,0.00021917,2]
[363100000,1748577047170,-1979.75,0.00021917,2]
[363100001,1748577047180,-420.0,0.00021917,2]
[363100002,1748577047190,-420.0,0.00021917,2]
[363100003,1748577047200,-859.16,0.00021917,2]
[363100004,1748577047210,-420.0,0.00021917,2]
[363100005,1748577047220,-1975.27,0.00021917,2]
[363100006,1748577047230,-808.82,0.00021917,2]
[363100007,1748577047240,-951.01,0.00021917,2]
[363100008,1748577047250,-522.24,0.00021917,2]
[363100009,1748577047260,-1659.59,0.00021917,2]
[363100010,1748577047269,-4912.84,0.00021917,2]
[363100011,1748577047280,-620.51,0.00021917,2]
[363100012,1748577047290,-420.0,0.00021917,2]
[363100013,1748577047300,-420.0,0.00021917,2]
[363100014,1748577047310,-420.0,0.00021917,2]
[363100015,1748577047322,-721.96,0.00021917,2]
[363100016,1748577047331,-577.58,0.00021917,2]
[363100017,1748577047341,-420.0,0.00021917,2]
[363100018,1748577047351,-1452.15,0.00021917,2]
[363100019,1748577047361,-420.0,0.00021917,2]
[363100020,1748577047372,-420.0,0.00021917,2]
[363100021,1748577047579,-420.0,0.00021917,2]
[363100022,1748577047589,-424.07465267,0.00021917,2]
[363100023,1748577047599,-605.38,0.00021917,2]
[363100024,1748577047609,-420.0,0.00021917,2]
[363100025,1748577047619,-420.0,0.00021917,2]
[363100026,1748577047629,-184.00096072,0.00021917,2]
[363100027,1748577047638,-420.0,0.00021917,2]
[363100028,1748577047648,-442.80127109,0.00021917,2]
[363100029,1748577047657,-420.0,0.00021917,2]
[363100030,1748577047666,-3424.81,0.00021917,2]
[363100031,1748577047679,-1044.75,0.00021917,2]
[363100032,1748577047689,-420.0,0.00021917,2]
[363100033,1748577047698,-1210.81,0.00021917,2]
[363100034,1748577047707,-1067.49,0.00021917,2]